[Event "EICC 2017"]
[Site "Minsk"]
[Date "2017.06.10"]
[Round "11"]
[White "Hamitevici, Vladimir"]
[Black "Lopez Martinez, Josep Manuel"]
[Result "1-0"]
[ECO "A04"]
[WhiteElo "2490"]
[BlackElo "2597"]
[Annotator "RC"]
[PlyCount "109"]
[EventDate "2017.??.??"]
[EventCountry "BLR"]
[SourceTitle "playchess.com"]
[Source "ChessBase"]
[SourceQuality "1"]
[TimeControl "40/5400+30:1800+30"]

1. Nf3 {[%emt 0:00:00]} e6 {[%emt 0:01:40]} 2. g3 {[%emt 0:00:02]} d5 {[%emt 0:02:20]} 3. Bg2 {[%emt 0:00:09]} Nf6 {[%emt 0:00:12]} 4. O-O {[%emt 0:00:23]} Be7 {[%emt 0:00:17]} 5. b3 {[%emt 0:01:41]} O-O {[%emt 0:00:34]} 6. Bb2 {[%emt 0:00:44]} c5 {[%emt 0:00:43]} 7. c4 {[%emt 0:01:08]} dxc4 {[%emt 0:04:46]} 8. bxc4 {[%emt 0:00:13]} Nc6 {[%emt 0:00:05]} 9. d3 {[%emt 0:02:12]} Qc7 {[%emt 0:01:11]} 10. e3 {[%emt 0:01:43]} Rd8 {[%emt 0:00:20]} 11. Qe2 {[%emt 0:00:11]} a6 {[%emt 0:03:11]} 12. Rc1 {[%emt 0:04:56]} b6 {[%emt 0:01:25]} 13. Ne1 {[%emt 0:01:31]} Bb7 {[%emt 0:00:13]} 14. f4 {[%emt 0:00:17]} Nb4 {[%emt 0:01:18]} 15. a3 {[%emt 0:05:59]} Bxg2 {[%emt 0:03:15]} 16. Qxg2 {[%emt 0:00:12]} Nc6 {[%emt 0:00:16]} 17. Nd2 {[%emt 0:01:41]} Rac8 {[%emt 0:01:04]} 18. Rab1 {[%emt 0:01:50]} Rd7 {[%emt 0:03:52]} 19. Ndf3 {[%emt 0:06:14]} Qd8 {[%emt 0:00:31]} 20. Qe2 {[%emt 0:02:44]} Ne8 {[%emt 0:00:36]} 21. Ba1 {[%emt 0:08:53]} Rb8 {[%emt 0:02:59]} 22. Ne5 {[%emt 0:01:05]} Nxe5 {[%emt 0:00:59]} 23. Bxe5 {[%emt 0:00:30]} Rbb7 {[%emt 0:00:28]} 24. a4 {[%emt 0:02:40]} a5 {[%emt 0:00:15]} 25. Rb3 {[%emt 0:01:05]} Bd6 {[%emt 0:00:35]} 26. Bc3 {[%emt 0:00:58]} Qc8 {[%emt 0:00:59]} 27. Qg2 {[%emt 0:03:51]} Bc7 {[%emt 0:01:12]} 28. Rcb1 {[%emt 0:03:06]} Ra7 {[%emt 0:00:55]} 29. Kf1 {[%emt 0:12:33]} Rd8 {[%emt 0:04:12]} 30. Qc6 {[%emt 0:00:54]} Rd6 {[%emt 0:02:21]} 31. Qe4 {[%emt 0:00:20]} Bd8 {[%emt 0:01:10]} 32. g4 {[%emt 0:00:46]} Qd7 {[%emt 0:00:47]} 33. Be5 {[%emt 0:00:53]} Rc6 {[%emt 0:00:06]} 34. g5 {[%emt 0:01:06]} Rc8 {[%emt 0:00:37]} 35. Ra3 {[%emt 0:01:30]} f6 {[%emt 0:03:23]} 36. gxf6 {[%emt 0:03:41]} gxf6 {[%emt 0:00:09]} 37. Ba1 {[%emt 0:00:25]} Ng7 {[%emt 0:01:07]} 38. Qg2 {[%emt 0:01:24]} Kh8 {[%emt 0:00:26]} 39. Nf3 {[%emt 0:03:04]} Qe8 {[%emt 0:00:28]} 40. Qh3 {[%emt 0:00:00]} Rd7 {[%emt 0:10:55]} 41. Ke2 {[%emt 0:02:02]} Rc6 {[%emt 0:07:24]} 42. Rg1 {[%emt 0:01:06]} Rcd6 {[%emt 0:00:20]} 43. Nd2 {[%emt 0:06:35]} Rf7 {[%emt 0:03:47]} 44. Ne4 {[%emt 0:00:55]} Rdd7 {[%emt 0:00:05]} 45. Rg6 {[%emt 0:03:54]} Qf8 {[%emt 0:09:42]} 46. Rb3 {[%emt 0:01:38]} Kg8 {[%emt 0:01:09]} 47. Rg2 {[%emt 0:00:27]} Kh8 {[%emt 0:02:48]} 48. Rb1 {[%emt 0:00:16]} Nf5 {[%emt 0:00:08]} 49. Rg6 {[%emt 0:01:51]} Ng7 {[%emt 0:05:34]} 50. Rbg1 {[%emt 0:02:06]} Be7 {[%emt 0:02:29]} 51. Qh6 {[%emt 0:02:47]} Ne8 {[%emt 0:08:17]} 52. Ng5 {[%emt 0:02:15]} Rd6 {[%emt 0:05:29]} 53. Qxf8+ {[%emt 0:00:31]} Rxf8 {[%emt 0:00:04]} 54. Nf7+ {[%emt 0:00:10]} Rxf7 {[%emt 0:00:03]} 55. Rg8# {[%emt 0:00:05]} 1-0